fUST/lending_fUST_20241021
["ID","MTS","AMOUNT","RATE_DAILY","PERIOD"]
[340585476,1729512639205,-224.4290083,0.00016418,2]
[340585477,1729512639214,-679.95429212,0.00016418,2]
[340585478,1729512639224,-62050.9137673,0.00016418,2]
[340585479,1729512639233,-9519.36008968,0.00016428,2]
[340585480,1729512639242,-190149.38301094,0.00016428,2]
[340585493,1729512639880,-310.78350239,0.00016428,2]
[340585516,1729512681762,376.986369,0.00015432,2]
[340585519,1729513271206,526.44,0.00022,60]
[340585525,1729513600131,-169.29422994,0.00015284,2]
[340585527,1729513625090,-19.19895506,0.00015284,2]
[340585528,1729513625111,-300.0,0.00015755,2]
[340585529,1729513625140,-300.0,0.00015755,2]
[340585530,1729513625161,-150.0,0.00015756,2]
[340585531,1729513625187,-527.0,0.00015756,2]
[340585532,1729513625450,-1639.74872781,0.00015756,2]
[340585536,1729513752091,-188.493185,0.0001531,2]
[340585560,1729513831868,-250.51069853,0.00016,2]
[340585561,1729513831878,-254.0,0.00016092,2]
[340585562,1729513831888,-8890.20115101,0.00016093,2]
[340585563,1729513831897,-1603.93290687,0.00016299,2]
[340585564,1729513831907,-392.48402729,0.00016308,2]
[340585565,1729513831916,-392.48402726,0.00016313,2]
[340585566,1729513831926,-392.48402726,0.00016318,2]
[340585567,1729513831935,-1000.0,0.00016318,2]
[340585568,1729513831944,-392.48402726,0.00016323,2]
[340585569,1729513831954,-392.48402726,0.00016328,2]
[340585570,1729513831964,-261.75,0.00016338,2]
[340585571,1729513831972,-203.27258156,0.00016338,2]
[340585572,1729513831982,-224.4290083,0.0001638,2]
[340585573,1729513831991,-35856.65132641,0.0001638,2]
[340585575,1729513832000,-6482.88119102,0.00016398,2]
[340585576,1729513832009,-3210.96603325,0.00016398,2]
[340585577,1729513832019,-4994.8989823,0.000164,2]
[340585578,1729513832028,-19448.6435731,0.00016408,2]
[340585579,1729513832038,-9632.89809975,0.00016408,2]
[340585580,1729513832048,-500.0,0.00016418,2]
[340585581,1729513832057,-19448.6435731,0.00016418,2]
[340585582,1729513832067,-9632.89809975,0.00016418,2]
[340585583,1729513832076,-41742.5584322,0.00016428,2]
[340585584,1729513832085,-10277.46844443,0.00016438,2]
[340585585,1729513832095,-399.2,0.00016438,2]
[340585586,1729513832104,-381.49505261,0.00016438,2]
[340585587,1729513832114,-500.0,0.00016438,2]
[340585588,1729513832124,-539.97712092,0.00016438,2]
[340585589,1729513832133,-500.0,0.00016438,2]
[340585590,1729513832142,-500.0,0.00016438,2]
[340585591,1729513832152,-500.0,0.00016438,2]
[340585592,1729513832162,-500.0,0.00016438,2]
[340585593,1729513832171,-500.0,0.00016438,2]
[340585594,1729513832180,-508.9079651,0.00016438,2]
[340585595,1729513832190,-500.0,0.00016438,2]
[340585596,1729513832200,-500.0,0.00016438,2]
[340585597,1729513832209,-500.0,0.00016438,2]
[340585598,1729513832218,-500.0,0.00016438,2]
[340585599,1729513832228,-1342.09,0.00016438,2]
[340585600,1729513832239,-500.0,0.00016438,2]
[340585601,1729513832250,-500.0,0.00016438,2]
[340585602,1729513832260,-500.0,0.00016438,2]
[340585603,1729513832270,-500.0,0.00016438,2]
[340585604,1729513832279,-500.0,0.00016438,2]
[340585605,1729513832288,-1270.41,0.00016438,2]
[340585606,1729513832298,-500.0,0.00016438,2]
[340585607,1729513832307,-500.0,0.00016438,2]
[340585608,1729513832317,-500.0,0.00016438,2]
[340585609,1729513832326,-514.6940696,0.00016438,2]
[340585610,1729513832336,-500.0,0.00016438,2]
[340585611,1729513832345,-500.0,0.00016438,2]
[340585612,1729513832355,-500.0,0.00016438,2]
[340585613,1729513832364,-1769.05,0.00016438,2]
[340585614,1729513832374,-510.62484345,0.00016438,2]
[340585615,1729513832383,-205.18910441,0.00016438,2]
[340585616,1729513832393,-500.0,0.00016438,2]
[340585617,1729513832403,-405.53145669,0.00016438,2]
[340585618,1729513832413,-500.0,0.00016438,2]
[340585619,1729513832422,-500.0,0.00016438,2]
[340585620,1729513832432,-500.0,0.00016438,2]
[340585621,1729513832442,-500.0,0.00016438,2]
[340585622,1729513832452,-557.10940043,0.00016438,2]
[340585623,1729513832461,-241.41665915,0.00016438,2]
[340585624,1729513832471,-1268.13,0.00016438,2]
[340585625,1729513832480,-1548.36,0.00016438,2]
[340585626,1729513832489,-500.0,0.00016438,2]
[340585627,1729513832499,-151.0,0.00016438,2]
[340585628,1729513832508,-151.0,0.00016438,2]
[340585629,1729513832518,-151.0,0.00016438,2]
[340585630,1729513832528,-500.0,0.00016438,2]
[340585631,1729513832538,-181.333484,0.00016438,2]
[340585632,1729513832549,-724.26,0.00016438,2]
[340585633,1729513832558,-500.0,0.00016438,2]
[340585634,1729513832568,-670.38,0.00016438,2]
[340585635,1729513832578,-500.0,0.00016438,2]
[340585636,1729513832587,-500.0,0.00016438,2]
[340585637,1729513832596,-500.0,0.00016438,2]
[340585638,1729513832606,-151.0,0.00016438,2]
[340585639,1729513832615,-151.0,0.00016438,2]
[340585640,1729513832625,-151.0,0.00016438,2]
[340585641,1729513832634,-500.0,0.00016438,2]
[340585642,1729513832643,-262.83778493,0.00016438,2]
[340585643,1729513832653,-500.0,0.00016438,2]
[340585644,1729513832662,-500.0,0.00016438,2]
[340585645,1729513832671,-500.0,0.00016438,2]
[340585646,1729513832680,-507.59457642,0.00016438,2]
[340585647,1729513832689,-580.98694222,0.00016438,2]
[340585648,1729513832699,-214.41,0.00016438,2]
[340585649,1729513832708,-896.93,0.00016438,2]
[340585650,1729513832717,-500.0,0.00016438,2]
[340585651,1729513832727,-809.22,0.00016438,2]
[340585652,1729513832736,-500.0,0.00016438,2]
[340585653,1729513832745,-500.0,0.00016438,2]
[340585654,1729513832754,-500.0,0.00016438,2]
[340585655,1729513832763,-500.0,0.00016438,2]
[340585656,1729513832773,-500.0,0.00016438,2]
[340585657,1729513832782,-500.0,0.00016438,2]
[340585658,1729513832791,-500.0,0.00016438,2]
[340585659,1729513832802,-500.0,0.00016438,2]
[340585660,1729513832814,-500.0,0.00016438,2]
[340585661,1729513832823,-500.0,0.00016438,2]
[340585662,1729513832833,-500.0,0.00016438,2]
[340585663,1729513832842,-500.0,0.00016438,2]
[340585664,1729513832852,-557.42,0.00016438,2]
[340585665,1729513832861,-500.0,0.00016438,2]
[340585666,1729513832871,-500.0,0.00016438,2]
[340585667,1729513832880,-500.0,0.00016438,2]
[340585668,1729513832890,-500.0,0.00016438,2]
[340585669,1729513832899,-500.0,0.00016438,2]
[340585670,1729513832908,-500.0,0.00016438,2]
[340585671,1729513832917,-500.0,0.00016438,2]
[340585672,1729513832927,-443.39540687,0.00016438,2]
[340585673,1729513832936,-500.0,0.00016438,2]
[340585674,1729513832945,-500.0,0.00016438,2]
[340585675,1729513832955,-500.0,0.00016438,2]
[340585676,1729513832965,-500.0,0.00016438,2]
[340585677,1729513832974,-501.34761856,0.00016438,2]
[340585678,1729513832984,-882.21,0.00016438,2]
[340585679,1729513832993,-151.0,0.00016438,2]
[340585680,1729513833003,-151.0,0.00016438,2]
[340585681,1729513833012,-151.0,0.00016438,2]
[340585682,1729513833021,-500.0,0.00016438,2]
[340585683,1729513833031,-1923.57,0.00016438,2]
[340585684,1729513833040,-500.0,0.00016438,2]
[340585685,1729513833051,-1307.37,0.00016438,2]
[340585686,1729513833060,-500.0,0.00016438,2]
[340585687,1729513833069,-1003.49,0.00016438,2]
[340585688,1729513833079,-151.0,0.00016438,2]
[340585689,1729513833088,-500.0,0.00016438,2]
[340585690,1729513833098,-500.0,0.00016438,2]
[340585691,1729513833107,-501.15158359,0.00016438,2]
[340585692,1729513833117,-388.6592275,0.00016438,2]
[340585693,1729513833127,-625.01,0.00016438,2]
[340585694,1729513833136,-500.0,0.00016438,2]
[340585695,1729513833146,-541.37259021,0.00016438,2]
[340585696,1729513833155,-500.0,0.00016438,2]
[340585697,1729513833390,-500.0,0.00016438,2]
[340585698,1729513833400,-500.0,0.00016438,2]
[340585699,1729513833410,-1053.59,0.00016438,2]
[340585700,1729513833420,-500.0,0.00016438,2]
[340585701,1729513833429,-500.0,0.00016438,2]
[340585702,1729513833438,-500.0,0.00016438,2]
[340585703,1729513833447,-500.0,0.00016438,2]
[340585704,1729513833456,-151.0,0.00016438,2]
[340585705,1729513833465,-151.0,0.00016438,2]
[340585706,1729513833474,-500.0,0.00016438,2]
[340585707,1729513833483,-739.85,0.00016438,2]
[340585708,1729513833492,-500.0,0.00016438,2]
[340585709,1729513833503,-500.0,0.00016438,2]
[340585710,1729513833513,-500.0,0.00016438,2]
[340585711,1729513833522,-500.0,0.00016438,2]
[340585712,1729513833531,-906.6,0.00016438,2]
[340585713,1729513833541,-500.0,0.00016438,2]
[340585714,1729513833550,-500.0,0.00016438,2]
[340585715,1729513833560,-500.0,0.00016438,2]
[340585716,1729513833569,-500.0,0.00016438,2]
[340585717,1729513833578,-500.0,0.00016438,2]
[340585718,1729513833587,-501.5623383,0.00016438,2]
[340585719,1729513833596,-1042.42,0.00016438,2]
[340585720,1729513833605,-500.0,0.00016438,2]
[340585721,1729513833615,-80.46062307,0.00016438,2]
[340585722,1729513833636,-362.531551,0.00016438,2]
[340585730,1729513839137,-166.251,0.00015756,2]
[340585731,1729513839147,-904.82896173,0.00015756,2]
[340585732,1729513839298,-252.17103827,0.00015756,2]
[340585733,1729513839308,-451.92729121,0.00016438,2]
[340585734,1729513839324,-8499.8877803,0.00016438,2]
[340585735,1729513839333,-57.00782593,0.00016438,2]
[340585736,1729513839343,-500.0,0.00016438,2]
[340585737,1729513839352,-500.0,0.00016438,2]
[340585738,1729513839362,-1049.62,0.00016438,2]
[340585739,1729513839372,-500.0,0.00016438,2]
[340585740,1729513839381,-500.0,0.00016438,2]
[340585741,1729513839390,-500.0,0.00016438,2]
[340585742,1729513839399,-769.6,0.00016438,2]
[340585743,1729513839407,-500.0,0.00016438,2]
[340585744,1729513839417,-259.8842527,0.00016438,2]
[340585745,1729513839426,-2571.32,0.00016438,2]
[340585746,1729513839435,-500.0,0.00016438,2]
[340585747,1729513839444,-500.0,0.00016438,2]
[340585748,1729513839454,-658.46,0.00016438,2]
[340585749,1729513839463,-500.0,0.00016438,2]
[340585750,1729513839472,-1338.2,0.00016438,2]
[340585751,1729513839482,-500.0,0.00016438,2]
[340585752,1729513839490,-500.77455274,0.00016438,2]
[340585753,1729513839500,-500.0,0.00016438,2]
[340585754,1729513839509,-573.10261298,0.00016438,2]
[340585755,1729513839518,-767.12,0.00016438,2]
[340585757,1729513839529,-1874.29,0.00016438,2]
[340585758,1729513839538,-500.0,0.00016438,2]
[340585760,1729513839547,-500.0,0.00016438,2]
[340585761,1729513839558,-479.98010519,0.00016438,2]
[340585762,1729513839568,-500.0,0.00016438,2]
[340585763,1729513839578,-299.57837491,0.00016438,2]
[340585765,1729513839588,-500.0,0.00016438,2]
[340585767,1729513839597,-500.0,0.00016438,2]
[340585769,1729513839607,-500.0,0.00016438,2]
[340585770,1729513839616,-1013.62,0.00016438,2]
[340585772,1729513839625,-500.0,0.00016438,2]
[340585773,1729513839635,-500.0,0.00016438,2]
[340585775,1729513839644,-713.94,0.00016438,2]
[340585777,1729513839653,-723.58,0.00016438,2]
[340585778,1729513839662,-500.0,0.00016438,2]
[340585779,1729513839671,-1567.34,0.00016438,2]
[340585780,1729513839681,-500.0,0.00016438,2]
[340585781,1729513839690,-500.0,0.00016438,2]
[340585782,1729513839699,-811.27,0.00016438,2]
[340585784,1729513839709,-500.0,0.00016438,2]
[340585785,1729513839719,-151.0,0.00016438,2]
[340585786,1729513839728,-151.0,0.00016438,2]
[340585787,1729513839738,-155.06396,0.00016438,2]
[340585788,1729513839748,-500.0,0.00016438,2]
[340585789,1729513839758,-500.0,0.00016438,2]
[340585791,1729513839767,-500.0,0.00016438,2]
[340585792,1729513839776,-500.0,0.00016438,2]
[340585794,1729513839786,-1090.59,0.00016438,2]
[340585796,1729513839796,-500.0,0.00016438,2]
[340585797,1729513839807,-500.0,0.00016438,2]
[340585798,1729513839817,-1070.72,0.00016438,2]
[340585800,1729513839826,-500.0,0.00016438,2]
[340585802,1729513839835,-500.0,0.00016438,2]
[340585803,1729513839844,-1812.7,0.00016438,2]
[340585804,1729513839854,-500.0,0.00016438,2]
[340585805,1729513839864,-500.0,0.00016438,2]
[340585806,1729513839873,-500.0,0.00016438,2]
[340585807,1729513839882,-500.0,0.00016438,2]
[340585808,1729513839891,-500.0,0.00016438,2]
[340585809,1729513839901,-500.0,0.00016438,2]
[340585810,1729513839911,-567.3171315,0.00016438,2]
[340585811,1729513839920,-500.0,0.00016438,2]
[340585812,1729513839929,-500.0,0.00016438,2]
[340585813,1729513839939,-1701.47,0.00016438,2]
[340585814,1729513839949,-500.0,0.00016438,2]
[340585815,1729513839958,-653.79,0.00016438,2]
[340585816,1729513839967,-500.0,0.00016438,2]
[340585817,1729513839977,-937.85,0.00016438,2]
[340585818,1729513839986,-500.0,0.00016438,2]
[340585819,1729513839994,-500.0,0.00016438,2]
[340585820,1729513840004,-655.59,0.00016438,2]
[340585821,1729513840014,-500.0,0.00016438,2]
[340585822,1729513840023,-500.0,0.00016438,2]
[340585823,1729513840033,-500.0,0.00016438,2]
[340585824,1729513840042,-500.0,0.00016438,2]
[340585825,1729513840054,-500.0,0.00016438,2]
[340585826,1729513840065,-721.17,0.00016438,2]
[340585828,1729513840074,-151.0,0.00016438,2]
[340585830,1729513840083,-505.11202141,0.00016438,2]
[340585832,1729513840092,-151.0,0.00016438,2]
[340585833,1729513840102,-439.201265,0.00016438,2]
[340585834,1729513840111,-176.893658,0.00016438,2]
[340585835,1729513840120,-151.0,0.00016438,2]
[340585836,1729513840129,-439.201265,0.00016438,2]
[340585837,1729513840138,-439.201265,0.00016438,2]
[340585838,1729513840148,-500.0,0.00016438,2]
[340585839,1729513840157,-439.201265,0.00016438,2]
[340585840,1729513840167,-500.0,0.00016438,2]
[340585841,1729513840176,-862.08,0.00016438,2]
[340585842,1729513840186,-439.201265,0.00016438,2]
[340585843,1729513840195,-439.201265,0.00016438,2]
[340585844,1729513840205,-439.201265,0.00016438,2]
[340585845,1729513840215,-439.201265,0.00016438,2]
[340585846,1729513840224,-500.0,0.00016438,2]
[340585847,1729513840234,-551.31721363,0.00016438,2]
[340585848,1729513840244,-533.07852198,0.00016438,2]
[340585849,1729513840255,-500.0,0.00016438,2]
[340585850,1729513840265,-708.03,0.00016438,2]
[340585851,1729513840275,-500.0,0.00016438,2]
[340585852,1729513840284,-391.46800814,0.00016438,2]
[340585853,1729513840293,-500.0,0.00016438,2]
[340585854,1729513840304,-500.0,0.00016438,2]
[340585855,1729513840314,-500.0,0.00016438,2]
[340585856,1729513840323,-500.0,0.00016438,2]
[340585857,1729513840333,-500.0,0.00016438,2]
[340585858,1729513840343,-500.0,0.00016438,2]
[340585859,1729513840352,-151.0,0.00016438,2]
[340585860,1729513840361,-500.0,0.00016438,2]
[340585861,1729513840370,-1854.45,0.00016438,2]
[340585862,1729513840379,-500.0,0.00016438,2]
[340585863,1729513840389,-151.0,0.00016438,2]
[340585864,1729513840398,-491.14728414,0.00016438,2]
[340585865,1729513840406,-500.0,0.00016438,2]
[340585866,1729513840419,-184.2546354,0.00016438,2]
[340585867,1729513840428,-880.05,0.00016438,2]
[340585868,1729513840437,-151.0,0.00016438,2]
[340585869,1729513840446,-151.0,0.00016438,2]
[340585870,1729513840456,-500.0,0.00016438,2]
[340585871,1729513840465,-500.0,0.00016438,2]
[340585872,1729513840474,-500.0,0.00016438,2]
[340585873,1729513840483,-500.0,0.00016438,2]
[340585874,1729513840493,-749.23,0.00016438,2]
[340585875,1729513840502,-948.84,0.00016438,2]
[340585876,1729513840512,-665.2,0.00016438,2]
[340585877,1729513840521,-1381.95,0.00016438,2]
[340585878,1729513840530,-500.0,0.00016438,2]
[340585879,1729513840539,-500.0,0.00016438,2]
[340585880,1729513840548,-151.0,0.00016438,2]
[340585881,1729513840559,-151.0,0.00016438,2]
[340585882,1729513840568,-500.0,0.00016438,2]
[340585883,1729513840578,-151.0,0.00016438,2]
[340585884,1729513840587,-151.0,0.00016438,2]
[340585885,1729513840597,-500.0,0.00016438,2]
[340585886,1729513840606,-151.0,0.00016438,2]
[340585887,1729513840616,-1745.24,0.00016438,2]
[340585888,1729513840625,-151.0,0.00016438,2]
[340585889,1729513840634,-353.39670182,0.00016438,2]
[340585890,1729513840643,-512.14500545,0.00016438,2]
[340585891,1729513840652,-500.0,0.00016438,2]
[340585892,1729513840662,-500.0,0.00016438,2]
[340585893,1729513840869,-998.06,0.00016438,2]
[340585894,1729513840878,-500.0,0.00016438,2]
[340585895,1729513840887,-504.97,0.00016438,2]
[340585896,1729513840897,-504.97,0.00016438,2]
[340585897,1729513840906,-504.97,0.00016438,2]
[340585898,1729513840915,-504.97,0.00016438,2]
[340585899,1729513840924,-504.97,0.00016438,2]
[340585900,1729513840934,-504.97,0.00016438,2]
[340585901,1729513840943,-504.97,0.00016438,2]
[340585902,1729513840952,-504.97,0.00016438,2]
[340585903,1729513840961,-504.97,0.00016438,2]
[340585904,1729513840970,-504.97,0.00016438,2]
[340585905,1729513840979,-541.63004014,0.00016438,2]
[340585906,1729513840989,-504.97,0.00016438,2]
[340585907,1729513840998,-504.97,0.00016438,2]
[340585908,1729513841008,-504.97,0.00016438,2]
[340585909,1729513841017,-504.97,0.00016438,2]
[340585910,1729513841028,-825.72,0.00016438,2]
[340585911,1729513841037,-504.97,0.00016438,2]
[340585912,1729513841047,-504.97,0.00016438,2]
[340585913,1729513841056,-504.97,0.00016438,2]
[340585914,1729513841066,-504.97,0.00016438,2]
[340585915,1729513841075,-504.97,0.00016438,2]
[340585916,1729513841085,-504.97,0.00016438,2]
[340585917,1729513841094,-504.97,0.00016438,2]
[340585918,1729513841103,-504.97,0.00016438,2]
[340585919,1729513841113,-504.97,0.00016438,2]
[340585920,1729513841122,-505.2,0.00016438,2]
[340585921,1729513841131,-2566.26,0.00016438,2]
[340585922,1729513841140,-500.0,0.00016438,2]
[340585923,1729513841149,-500.0,0.00016438,2]
[340585924,1729513841159,-1156.23,0.00016438,2]
[340585925,1729513841168,-777.7,0.00016438,2]
[340585926,1729513841177,-213.07866943,0.00016438,2]
[340585927,1729513841186,-500.64328078,0.00016438,2]
[340585928,1729513841195,-500.0,0.00016438,2]
[340585929,1729513841204,-471.76501859,0.00016438,2]
[340585930,1729513841213,-500.0,0.00016438,2]
[340585931,1729513841223,-500.0,0.00016438,2]
[340585932,1729513841233,-503.07827068,0.00016438,2]
[340585933,1729513841242,-1245.31,0.00016438,2]
[340585934,1729513841252,-2301.11,0.00016438,2]
[340585935,1729513841264,-500.0,0.00016438,2]
[340585936,1729513841274,-2305.23,0.00016438,2]
[340585937,1729513841283,-151.0,0.00016438,2]
[340585938,1729513841293,-218.375248,0.00016438,2]
[340585939,1729513841303,-354.22677469,0.00016438,2]
[340585940,1729513841312,-151.0,0.00016438,2]
[340585941,1729513841321,-151.0,0.00016438,2]
[340585942,1729513841331,-500.0,0.00016438,2]
[340585943,1729513841340,-496.56240812,0.00016438,2]
[340585944,1729513841350,-151.0,0.00016438,2]
[340585945,1729513841360,-2744.35,0.00016438,2]
[340585946,1729513841369,-151.0,0.00016438,2]
[340585947,1729513841378,-832.95,0.00016438,2]
[340585948,1729513841387,-493.22837232,0.00016438,2]
[340585949,1729513841396,-500.0,0.00016438,2]
[340585950,1729513841405,-500.0,0.00016438,2]
[340585951,1729513841414,-500.0,0.00016438,2]
[340585952,1729513841423,-1607.86,0.00016438,2]
[340585953,1729513841433,-1019.95,0.00016438,2]
[340585954,1729513841442,-500.0,0.00016438,2]
[340585955,1729513841451,-500.0,0.00016438,2]
[340585956,1729513841461,-564.04,0.00016438,2]
[340585957,1729513841470,-2233.07,0.00016438,2]
[340585958,1729513841480,-215.97033511,0.00016438,2]
[340585959,1729513841489,-587.65423772,0.00016438,2]
[340585960,1729513841498,-500.0,0.00016438,2]
[340585961,1729513841507,-2000.83,0.00016438,2]
[340585962,1729513841516,-971.15,0.00016438,2]
[340585963,1729513841526,-531.75231897,0.00016438,2]
[340585964,1729513841535,-500.0,0.00016438,2]
[340585965,1729513841544,-500.0,0.00016438,2]
[340585966,1729513841555,-1598.64,0.00016438,2]
[340585967,1729513841564,-500.0,0.00016438,2]
[340585968,1729513841574,-767.15,0.00016438,2]
[340585969,1729513841583,-624.92,0.00016438,2]
[340585970,1729513841592,-2003.89,0.00016438,2]
[340585971,1729513841601,-753.46,0.00016438,2]
[340585972,1729513841610,-151.0,0.00016438,2]
[340585973,1729513841620,-200.0,0.00016438,2]
[340585974,1729513841629,-1071.24,0.00016438,2]
[340585975,1729513841638,-500.0,0.00016438,2]
[340585976,1729513841647,-500.0,0.00016438,2]
[340585977,1729513841657,-497.37289733,0.00016438,2]
[340585978,1729513841667,-500.0,0.00016438,2]
[340585979,1729513841676,-500.0,0.00016438,2]
[340585980,1729513841685,-1697.81,0.00016438,2]
[340585981,1729513841694,-1453.55,0.00016438,2]
[340585982,1729513841703,-516.43256536,0.00016438,2]
[340585983,1729513841712,-500.0,0.00016438,2]
[340585984,1729513841721,-1295.17,0.00016438,2]
[340585985,1729513841731,-1292.58,0.00016438,2]
[340585986,1729513841740,-500.0,0.00016438,2]
[340585987,1729513841749,-500.0,0.00016438,2]
[340585988,1729513841758,-1906.7,0.00016438,2]
[340585989,1729513841767,-501.38190217,0.00016438,2]
[340585990,1729513841776,-500.0,0.00016438,2]
[340585991,1729513841785,-285.02526462,0.00016438,2]
[340585992,1729513841794,-500.0,0.00016438,2]
[340585993,1729513841804,-500.0,0.00016438,2]
[340585994,1729513841815,-500.0,0.00016438,2]
[340585995,1729513841825,-820.92,0.00016438,2]
[340585996,1729513841834,-1502.85,0.00016438,2]
[340585997,1729513841844,-1906.53,0.00016438,2]
[340585998,1729513841853,-750.13,0.00016438,2]
[340585999,1729513841863,-226.944921,0.00016438,2]
[340586000,1729513841872,-226.944921,0.00016438,2]
[340586001,1729513841881,-500.0,0.00016438,2]
[340586002,1729513841890,-226.944921,0.00016438,2]
[340586003,1729513841899,-951.38,0.00016438,2]
[340586004,1729513841908,-305.22878819,0.00016438,2]
[340586005,1729513841916,-500.0,0.00016438,2]
[340586006,1729513841926,-226.944921,0.00016438,2]
[340586007,1729513841935,-2884.75,0.00016438,2]
[340586008,1729513841944,-500.0,0.00016438,2]
[340586009,1729513841953,-226.944921,0.00016438,2]
[340586010,1729513841962,-226.944921,0.00016438,2]
[340586011,1729513841972,-151.337081,0.00016438,2]
[340586012,1729513841982,-226.944921,0.00016438,2]
[340586013,1729513841991,-226.944921,0.00016438,2]
[340586014,1729513842000,-500.0,0.00016438,2]
[340586015,1729513842009,-500.0,0.00016438,2]
[340586016,1729513842018,-500.0,0.00016438,2]
[340586017,1729513842028,-500.0,0.00016438,2]
[340586018,1729513842037,-500.0,0.00016438,2]
[340586019,1729513842046,-500.0,0.00016438,2]
[340586020,1729513842056,-500.76373085,0.00016438,2]
[340586021,1729513842065,-1121.85,0.00016438,2]
[340586022,1729513842074,-1685.22,0.00016438,2]
[340586023,1729513842083,-500.0,0.00016438,2]
[340586024,1729513842092,-2827.85,0.00016438,2]
[340586025,1729513842101,-2701.49,0.00016438,2]
[340586026,1729513842111,-151.0,0.00016438,2]
[340586027,1729513842120,-500.0,0.00016438,2]
[340586028,1729513842130,-151.0,0.00016438,2]
[340586029,1729513842139,-151.0,0.00016438,2]
[340586030,1729513842148,-151.0,0.00016438,2]
[340586031,1729513842157,-151.0,0.00016438,2]
[340586032,1729513842166,-285.78665,0.00016438,2]
[340586033,1729513842175,-500.0,0.00016438,2]
[340586034,1729513842184,-500.0,0.00016438,2]
[340586035,1729513842193,-501.46177585,0.00016438,2]
[340586036,1729513842202,-500.0,0.00016438,2]
[340586037,1729513842212,-1654.01,0.00016438,2]
[340586038,1729513842221,-1994.75,0.00016438,2]
[340586039,1729513842231,-500.0,0.00016438,2]
[340586040,1729513842240,-1571.15,0.00016438,2]
[340586041,1729513842249,-500.0,0.00016438,2]
[340586042,1729513842261,-500.0,0.00016438,2]
[340586043,1729513842271,-500.0,0.00016438,2]
[340586044,1729513842280,-500.0,0.00016438,2]
[340586045,1729513842289,-500.0,0.00016438,2]
[340586046,1729513842299,-500.0,0.00016438,2]
[340586047,1729513842309,-1789.65,0.00016438,2]
[340586048,1729513842319,-151.0,0.00016438,2]
[340586049,1729513842327,-151.0,0.00016438,2]
[340586050,1729513842337,-151.0,0.00016438,2]
[340586051,1729513842346,-151.0,0.00016438,2]
[340586052,1729513842355,-151.0,0.00016438,2]
[340586053,1729513842365,-242.119066,0.00016438,2]
[340586054,1729513842374,-500.0,0.00016438,2]
[340586055,1729513842383,-899.06,0.00016438,2]
[340586056,1729513842392,-1355.25,0.00016438,2]
[340586057,1729513842401,-500.0,0.00016438,2]
[340586058,1729513842411,-566.92533978,0.00016438,2]
[340586059,1729513842420,-1112.18,0.00016438,2]
[340586060,1729513842429,-245.331185,0.00016438,2]
[340586061,1729513842438,-1080.78,0.00016438,2]
[340586062,1729513842448,-854.75,0.00016438,2]
[340586063,1729513842457,-500.0,0.00016438,2]
[340586064,1729513842466,-1835.71,0.00016438,2]
[340586065,1729513842475,-500.0,0.00016438,2]
[340586066,1729513842484,-500.0,0.00016438,2]
[340586067,1729513842494,-500.0,0.00016438,2]
[340586068,1729513842503,-500.0,0.00016438,2]